[Event "WYCC 2018 G18"]
[Site "Halkidiki"]
[Date "2018.10.24"]
[Round "6"]
[White "Muratova, Saltanat"]
[Black "Li, Yilin"]
[Result "1-0"]
[ECO "C88"]
[WhiteElo "1859"]
[BlackElo "1993"]
[Annotator "NA"]
[PlyCount "53"]
[EventDate "2018.10.20"]
[EventType "swiss"]
[EventCountry "GRE"]
[SourceTitle "playchess.com"]
[Source "ChessBase"]
[SourceQuality "1"]
[TimeControl "40/5400+30:1800+30"]

1. e4 {[%emt 0:00:00]} e5 {[%emt 0:00:00]} 2. Nf3 {[%emt 0:00:00]} Nc6 {[%emt 0:01:41]} 3. Bb5 {[%emt 0:00:11]} a6 {[%emt 0:00:09]} 4. Ba4 {[%emt 0:00:06]} Nf6 {[%emt 0:00:16]} 5. O-O {[%emt 0:00:09]} Be7 {[%emt 0:01:16]} 6. Re1 {[%emt 0:00:12]} b5 {[%emt 0:00:25]} 7. Bb3 {[%emt 0:00:07]} O-O {[%emt 0:00:09]} 8. a4 {[%emt 0:00:14]} Rb8 {[%emt 0:05:49]} 9. c3 {[%emt 0:00:54]} d6 {[%emt 0:01:59]} 10. h3 {[%emt 0:00:34]} Na5 {[%emt 0:02:21]} 11. Bc2 {[%emt 0:00:26]} c5 {[%emt 0:01:09]} 12. d4 {[%emt 0:00:33]} Nc6 {[%emt 0:04:14]} 13. d5 {[%emt 0:03:08]} Na5 {[%emt 0:01:59]} 14. Nbd2 {[%emt 0:06:31]} g6 {[%emt 0:07:54]} 15. b4 {[%emt 0:04:45]} Nb7 {[%emt 0:01:40]} 16. Nf1 {[%emt 0:04:07]} Nh5 {[%emt 0:01:57]} 17. Be3 {[%emt 0:05:42]} Qc7 {[%emt 0:04:17]} 18. axb5 {[%emt 0:03:36]} axb5 {[%emt 0:00:03]} 19. Qe2 {[%emt 0:00:15]} Bd7 {[%emt 0:01:09]} 20. N1h2 {[%emt 0:02:42]} Bf6 {[%emt 0:19:17]} 21. Qd2 {[%emt 0:18:09]} Bg7 {[%emt 0:03:09]} 22. Ng4 {[%emt 0:05:12]} f5 {[%emt 0:03:43]} 23. Nh6+ {[%emt 0:02:20]} Kh8 {[%emt 0:01:07]} 24. exf5 {[%emt 0:06:47]} gxf5 {[%emt 0:00:36]} 25. Nh4 {[%emt 0:00:44]} f4 {[%emt 0:07:39]} 26. Qd3 {[%emt 0:00:13]} Nf6 {[%emt 0:00:10]} 27. Qxh7+ {[%emt 0:00:08]} 1-0

[Event "WYCC 2018 G18"]
[Site "Halkidiki"]
[Date "2018.10.24"]
[Round "6"]
[White "Jie, Tianhui"]
[Black "Vanduyfhuys, Daria"]
[Result "1/2-1/2"]
[ECO "E10"]
[WhiteElo "1849"]
[BlackElo "2058"]
[Annotator "NA"]
[PlyCount "90"]
[EventDate "2018.10.20"]
[EventType "swiss"]
[EventCountry "GRE"]
[SourceTitle "playchess.com"]
[Source "ChessBase"]
[SourceQuality "1"]
[TimeControl "40/5400+30:1800+30"]

1. d4 {[%emt 0:00:00]} Nf6 {[%emt 0:00:00]} 2. c4 {[%emt 0:00:00]} e6 {[%emt 0:00:00]} 3. Nf3 {[%emt 0:00:00]} d5 {[%emt 0:00:00]} 4. cxd5 {[%emt 0:00:00]} exd5 {[%emt 0:00:00]} 5. Nc3 {[%emt 0:00:02]} c6 {[%emt 0:00:26]} 6. Qc2 {[%emt 0:00:10]} g6 {[%emt 0:05:21]} 7. Bg5 {[%emt 0:01:27]} h6 {[%emt 0:01:27]} 8. Bh4 {[%emt 0:00:54]} Be7 {[%emt 0:00:15]} 9. e3 {[%emt 0:00:59]} Bf5 {[%emt 0:01:00]} 10. Bd3 {[%emt 0:02:42]} Bxd3 {[%emt 0:00:57]} 11. Qxd3 {[%emt 0:00:12]} Nbd7 {[%emt 0:05:46]} 12. O-O {[%emt 0:01:39]} O-O {[%emt 0:03:34]} 13. Rab1 {[%emt 0:03:12]} Ne4 {[%emt 0:02:55]} 14. Bxe7 {[%emt 0:01:48]} Qxe7 {[%emt 0:00:05]} 15. b4 {[%emt 0:01:16]} a6 {[%emt 0:07:55]} 16. Nd2 {[%emt 0:04:24]} Nxd2 {[%emt 0:09:39]} 17. Qxd2 {[%emt 0:00:12]} Kg7 {[%emt 0:00:28]} 18. a4 {[%emt 0:03:15]} b5 {[%emt 0:02:22]} 19. a5 {[%emt 0:02:25]} f5 {[%emt 0:01:17]} 20. Rfe1 {[%emt 0:03:34]} Rae8 {[%emt 0:06:05]} 21. Ne2 {[%emt 0:05:34]} Qd6 {[%emt 0:06:48]} 22. Nf4 {[%emt 0:03:37]} Nf6 {[%emt 0:00:59]} 23. f3 {[%emt 0:02:38]} Nd7 {[%emt 0:04:58]} 24. Rbc1 {[%emt 0:07:54]} Rf6 {[%emt 0:03:08]} 25. Rc2 {[%emt 0:05:43]} Qe7 {[%emt 0:05:42]} 26. Rec1 {[%emt 0:08:55]} Nb8 {[%emt 0:00:34]} 27. Kf2 {[%emt 0:01:35]} Qd6 {[%emt 0:02:25]} 28. g3 {[%emt 0:07:37]} Nd7 {[%emt 0:04:51]} 29. Qc3 {[%emt 0:05:41]} Qe7 {[%emt 0:01:43]} 30. Qb3 {[%emt 0:04:05]} Nb8 {[%emt 0:03:23]} 31. Re2 {[%emt 0:03:02]} Rd6 {[%emt 0:01:42]} 32. Nd3 {[%emt 0:01:24]} Nd7 {[%emt 0:00:25]} 33. Rce1 {[%emt 0:04:08]} Qf6 {[%emt 0:01:55]} 34. Qc3 {[%emt 0:03:36]} g5 {[%emt 0:03:09]} 35. Rg1 {[%emt 0:02:15]} Rde6 {[%emt 0:01:11]} 36. Nc5 {[%emt 0:03:23]} Nxc5 {[%emt 0:00:22]} 37. Qxc5 {[%emt 0:00:09]} Qe7 {[%emt 0:00:25]} 38. Qxe7+ {[%emt 0:02:03]} R8xe7 {[%emt 0:00:07]} 39. g4 {[%emt 0:01:08]} f4 {[%emt 0:11:10]} 40. Rge1 {[%emt 0:00:00]} Rf6 {[%emt 0:00:00]} 41. exf4 {[%emt 0:01:01]} Rxe2+ {[%emt 0:03:43]} 42. Rxe2 {[%emt 0:00:16]} Rxf4 {[%emt 0:00:27]} 43. Ke3 {[%emt 0:01:58]} h5 {[%emt 0:03:31]} 44. h3 {[%emt 0:02:49]} h4 {[%emt 0:00:29]} 45. Rc2 {[%emt 0:02:25]} Rf6 {[%emt 0:00:33] Ke4} 1/2-1/2

[Event "WYCC 2018 G18"]
[Site "Halkidiki"]
[Date "2018.10.24"]
[Round "6"]
[White "Perminaite, Guoda"]
[Black "Nass, Sara"]
[Result "1/2-1/2"]
[ECO "B13"]
[WhiteElo "1840"]
[BlackElo "1986"]
[Annotator "NA"]
[PlyCount "84"]
[EventDate "2018.10.20"]
[EventType "swiss"]
[EventCountry "GRE"]
[SourceTitle "playchess.com"]
[Source "ChessBase"]
[SourceQuality "1"]
[TimeControl "40/5400+30:1800+30"]

1. e4 {[%emt 0:00:00]} c6 {[%emt 0:00:00]} 2. d4 {[%emt 0:00:00]} d5 {[%emt 0:00:00]} 3. exd5 {[%emt 0:00:00]} cxd5 {[%emt 0:00:00]} 4. Bd3 {[%emt 0:00:00]} g6 {[%emt 0:00:00]} 5. h3 {[%emt 0:01:11] B13: Caro-Kann: Exchange Variation and Panov-Botvinnik Attack} Nf6 {[%emt 0:01:51]} 6. c3 {[%emt 0:00:47]} Bf5 {[%emt 0:01:38]} 7. Bxf5 {[%emt 0:02:04]} gxf5 {[%emt 0:00:05]} 8. Bf4 {[%emt 0:00:14]} e6 {[%emt 0:00:35]} 9. Nf3 {[%emt 0:04:57]} Nc6 {[%emt 0:04:51]} 10. Qb3 {[%emt 0:01:27]} Qb6 {[%emt 0:01:15]} 11. Nbd2 $146 {[%emt 0:06:41]} ({Predecessor:} 11. Na3 Be7 12. Nb5 Rc8 13. Ne5 Rg8 14. O-O Nxe5 15. Bxe5 Nd7 16. Bf4 a6 {½-½ (62) Vavra,P (2459)-Meduna,E (2482) Czechia 2002}) 11... Rg8 {[%emt 0:07:48]} 12. Rg1 {[%emt 0:11:22]} Nh5 {[%emt 0:07:03]} 13. Bh2 {[%emt 0:01:06]} Bh6 {[%emt 0:01:37]} 14. g4 {[%emt 0:13:52]} fxg4 {[%emt 0:12:36]} 15. hxg4 {[%emt 0:01:36]} Bxd2+ {[%emt 0:01:18]} 16. Nxd2 {[%emt 0:00:35]} Nf6 {[%emt 0:02:04]} 17. f3 {[%emt 0:03:00]} Kd7 {[%emt 0:12:40]} 18. O-O-O {[%emt 0:02:40]} Qxb3 {[%emt 0:02:32]} 19. Nxb3 {[%emt 0:01:02]} b6 {[%emt 0:00:40]} 20. Kc2 {[%emt 0:01:33]} Rg6 $11 {[%emt 0:02:46]} 21. Nc1 {[%emt 0:03:50]} h5 {[%emt 0:12:23]} 22. gxh5 {[%emt 0:01:32]} Rxg1 {[%emt 0:03:04]} 23. Rxg1 {[%emt 0:02:08]} Nxh5 {[%emt 0:00:21]} 24. Nd3 {[%emt 0:01:11]} Ke7 {[%emt 0:02:25]} 25. Kd2 {[%emt 0:08:43]} Rh8 {[%emt 0:03:39]} 26. Rg2 {[%emt 0:10:30]} f6 {[%emt 0:08:24]} 27. Ke3 {[%emt 0:04:52]} Kf7 {[%emt 0:01:04]} 28. Bd6 {[%emt 0:02:57]} Ng7 {[%emt 0:02:44]} 29. Kf2 {[%emt 0:03:22]} Nf5 {[%emt 0:01:48]} 30. Rh2 {[%emt 0:01:20]} Rxh2+ {[%emt 0:01:55]} 31. Bxh2 {[%emt 0:00:06]} b5 {[%emt 0:03:19]} 32. a3 {[%emt 0:07:18]} Na5 {[%emt 0:01:13]} 33. Bc7 {[%emt 0:00:28]} Nc4 {[%emt 0:00:42]} 34. Ke2 {[%emt 0:00:50]} a6 {[%emt 0:01:04]} 35. Bf4 {[%emt 0:01:27]} Ne7 {[%emt 0:01:04]} 36. Bc1 {[%emt 0:00:50]} Nc6 {[%emt 0:00:34]} 37. Nc5 {[%emt 0:01:35]} a5 {[%emt 0:00:18]} 38. a4 {[%emt 0:01:19]} b4 {[%emt 0:00:34]} 39. Kd3 {[%emt 0:00:20]} bxc3 {[%emt 0:00:18]} 40. Kxc3 {[%emt 0:00:00]} e5 {[%emt 0:00:00]} 41. dxe5 {[%emt 0:01:37]} fxe5 {[%emt 0:03:07]} 42. f4 {[%emt 0:01:26]} Kf6 {[%emt 0:06:15]} 1/2-1/2

[Event "WYCC 2018 G18"]
[Site "Halkidiki"]
[Date "2018.10.24"]
[Round "6"]
[White "Cosme Contreras, Trilce"]
[Black "Prakapuk, Vera"]
[Result "0-1"]
[ECO "D63"]
[WhiteElo "1829"]
[BlackElo "1949"]
[Annotator "NA"]
[PlyCount "86"]
[EventDate "2018.10.20"]
[EventType "swiss"]
[EventCountry "GRE"]
[SourceTitle "playchess.com"]
[Source "ChessBase"]
[SourceQuality "1"]
[TimeControl "40/5400+30:1800+30"]

1. d4 {[%emt 0:03:02]} Nf6 {[%emt 0:00:00]} 2. c4 {[%emt 0:00:33]} e6 {[%emt 0:00:00]} 3. Nc3 {[%emt 0:00:04]} d5 {[%emt 0:00:00]} 4. Nf3 {[%emt 0:01:23]} Be7 {[%emt 0:01:11]} 5. Bg5 {[%emt 0:00:32]} O-O {[%emt 0:00:28]} 6. e3 {[%emt 0:00:08]} Nbd7 {[%emt 0:01:35]} 7. Rc1 {[%emt 0:03:08]} b6 {[%emt 0:07:07]} 8. cxd5 {[%emt 0:01:34]} exd5 {[%emt 0:00:09]} 9. Bd3 {[%emt 0:01:56]} Bb7 {[%emt 0:01:01]} 10. O-O {[%emt 0:03:52]} h6 {[%emt 0:03:48]} 11. Bf4 {[%emt 0:05:32]} Nh5 {[%emt 0:05:06]} 12. Bg3 {[%emt 0:02:30]} Nxg3 {[%emt 0:00:21]} 13. hxg3 {[%emt 0:00:07]} c5 {[%emt 0:04:46]} 14. g4 {[%emt 0:06:04]} g6 {[%emt 0:13:20]} 15. Bb1 {[%emt 0:06:07]} Kg7 {[%emt 0:12:44]} 16. dxc5 {[%emt 0:04:30]} Nxc5 {[%emt 0:00:06]} 17. b4 {[%emt 0:03:16]} Ne4 {[%emt 0:06:48]} 18. a3 {[%emt 0:02:20]} Bf6 {[%emt 0:03:51]} 19. Nd4 {[%emt 0:05:55]} Rc8 {[%emt 0:02:06]} 20. Nce2 {[%emt 0:08:55]} Qe7 {[%emt 0:16:39]} 21. Qd3 {[%emt 0:05:32]} Kg8 {[%emt 0:04:06]} 22. f3 {[%emt 0:09:57]} Nd6 {[%emt 0:00:28]} 23. Kf2 {[%emt 0:03:31]} Bg7 {[%emt 0:00:34]} 24. Ba2 {[%emt 0:00:52]} Qh4+ {[%emt 0:08:17]} 25. Ng3 {[%emt 0:08:10]} Qf6 {[%emt 0:00:59]} 26. Kg1 {[%emt 0:01:10]} Rfe8 {[%emt 0:00:35]} 27. Nde2 {[%emt 0:03:04]} Nc4 {[%emt 0:02:10]} 28. e4 {[%emt 0:06:10]} Ne5 {[%emt 0:00:18]} 29. Qd2 {[%emt 0:01:23]} Rxc1 {[%emt 0:00:54]} 30. Rxc1 {[%emt 0:01:39]} dxe4 {[%emt 0:00:02]} 31. fxe4 {[%emt 0:00:37]} Qh4 {[%emt 0:02:17]} 32. Qf4 {[%emt 0:00:42]} Re7 {[%emt 0:02:47]} 33. g5 {[%emt 0:01:36]} hxg5 {[%emt 0:00:09]} 34. Qxh4 {[%emt 0:00:35]} gxh4 {[%emt 0:00:02]} 35. Nf1 {[%emt 0:00:18]} Bxe4 {[%emt 0:00:20]} 36. Nf4 {[%emt 0:00:40]} Nd3 {[%emt 0:00:36]} 37. Rc8+ {[%emt 0:00:25]} Kh7 {[%emt 0:00:04]} 38. Nd5 {[%emt 0:00:37]} Bxd5 {[%emt 0:00:50]} 39. Bxd5 {[%emt 0:00:07]} Bd4+ {[%emt 0:00:32]} 40. Kh2 {[%emt 0:00:00]} Nf4 {[%emt 0:00:00]} 41. Bf3 {[%emt 0:01:53]} Re1 {[%emt 0:05:43]} 42. Rc4 {[%emt 0:02:08]} Ne6 {[%emt 0:01:57]} 43. Nd2 {[%emt 0:00:52]} Be5+ {[%emt 0:00:15]} 0-1

[Event "WYCC 2018 G18"]
[Site "Halkidiki"]
[Date "2018.10.24"]
[Round "6"]
[White "Cibikova, Sofia Anna"]
[Black "Hng, Mei-En Emmanuelle"]
[Result "0-1"]
[ECO "B23"]
[WhiteElo "1809"]
[BlackElo "2020"]
[Annotator "NA"]
[PlyCount "50"]
[EventDate "2018.10.20"]
[EventType "swiss"]
[EventCountry "GRE"]
[SourceTitle "playchess.com"]
[Source "ChessBase"]
[SourceQuality "1"]
[TimeControl "40/5400+30:1800+30"]

1. e4 {[%emt 0:00:00]} c5 {[%emt 0:00:00]} 2. Nc3 {[%emt 0:00:00]} e6 {[%emt 0:00:00]} 3. g3 {[%emt 0:00:11]} Be7 {[%emt 0:00:00]} 4. Bg2 {[%emt 0:00:34]} Nc6 {[%emt 0:00:05]} 5. Nge2 {[%emt 0:01:12]} Nf6 {[%emt 0:02:00]} 6. O-O {[%emt 0:02:32]} d6 {[%emt 0:01:08]} 7. d3 {[%emt 0:01:41]} Bd7 {[%emt 0:09:35]} 8. h3 {[%emt 0:04:42]} h5 {[%emt 0:06:51]} 9. Be3 {[%emt 0:05:46]} Qc7 {[%emt 0:03:57]} 10. f4 {[%emt 0:04:29]} d5 {[%emt 0:14:58]} 11. exd5 {[%emt 0:07:56]} exd5 {[%emt 0:00:17]} 12. d4 {[%emt 0:06:10]} Bf5 {[%emt 0:04:34]} 13. a3 {[%emt 0:17:23]} O-O-O {[%emt 0:10:43]} 14. Qc1 {[%emt 0:07:52]} Qd7 {[%emt 0:06:17]} 15. Kh2 {[%emt 0:02:38]} Qe6 {[%emt 0:00:28]} 16. Bf2 {[%emt 0:09:45]} Rhe8 {[%emt 0:08:49]} 17. Re1 {[%emt 0:03:42]} Qd7 {[%emt 0:06:08]} 18. dxc5 $17 {[%emt 0:07:29]} h4 {[%emt 0:01:27]} 19. b4 {[%emt 0:05:10]} hxg3+ {[%emt 0:00:12]} 20. Bxg3 {[%emt 0:00:28]} Rh8 {[%emt 0:00:37]} 21. Ng1 {[%emt 0:01:45]} Bxh3 {[%emt 0:12:45]} 22. Bxh3 {[%emt 0:01:30]} Rxh3+ {[%emt 0:00:06]} 23. Nxh3 {[%emt 0:00:07]} Rh8 {[%emt 0:00:03]} 24. Kg2 {[%emt 0:01:56]} Qxh3+ {[%emt 0:01:41]} 25. Kf2 {[%emt 0:00:08]} Ng4+ {[%emt 0:01:11]} 0-1

[Event "WYCC 2018 G18"]
[Site "Halkidiki"]
[Date "2018.10.24"]
[Round "6"]
[White "Perry, Tal"]
[Black "Represa Perez, Mireya"]
[Result "0-1"]
[ECO "B22"]
[WhiteElo "1702"]
[BlackElo "2151"]
[Annotator "NA"]
[PlyCount "138"]
[EventDate "2018.10.20"]
[EventType "swiss"]
[EventCountry "GRE"]
[SourceTitle "playchess.com"]
[Source "ChessBase"]
[SourceQuality "1"]
[TimeControl "40/5400+30:1800+30"]

1. e4 {[%emt 0:00:00]} c5 {[%emt 0:00:00]} 2. c3 {[%emt 0:00:00]} d5 {[%emt 0:00:00]} 3. exd5 {[%emt 0:00:00]} Qxd5 {[%emt 0:00:00]} 4. Nf3 {[%emt 0:00:00]} Nc6 {[%emt 0:00:12]} 5. Na3 {[%emt 0:00:28]} Bg4 {[%emt 0:11:15]} 6. Be2 {[%emt 0:03:11]} Nf6 {[%emt 0:06:34]} 7. Nb5 {[%emt 0:08:27]} Qd7 {[%emt 0:05:29]} 8. O-O {[%emt 0:14:24]} Rd8 {[%emt 0:06:58]} 9. d4 {[%emt 0:37:38]} a6 {[%emt 0:06:59]} 10. d5 {[%emt 0:06:28]} axb5 {[%emt 0:01:47]} 11. dxc6 {[%emt 0:00:18]} Qxd1 {[%emt 0:08:12]} 12. Bxd1 {[%emt 0:04:24]} bxc6 {[%emt 0:01:39]} 13. h3 {[%emt 0:00:10]} Be6 {[%emt 0:02:28]} 14. Be3 {[%emt 0:00:58]} Bc4 {[%emt 0:02:55]} 15. Re1 {[%emt 0:00:28]} e6 {[%emt 0:01:25]} 16. Ne5 {[%emt 0:00:29]} Bd5 {[%emt 0:00:37]} 17. a4 {[%emt 0:01:09]} Bd6 {[%emt 0:04:39]} 18. Nd3 {[%emt 0:00:58]} c4 {[%emt 0:03:25]} 19. Nf4 {[%emt 0:01:45]} O-O {[%emt 0:03:43]} 20. Bc2 {[%emt 0:04:26]} Rb8 {[%emt 0:04:02]} 21. Nxd5 {[%emt 0:04:14]} Nxd5 {[%emt 0:01:23]} 22. a5 {[%emt 0:00:53]} Ra8 {[%emt 0:01:55]} 23. Be4 {[%emt 0:00:20]} Ra6 {[%emt 0:02:22]} 24. Bxd5 {[%emt 0:00:46]} cxd5 {[%emt 0:01:06]} 25. Bb6 {[%emt 0:00:42]} Rc8 {[%emt 0:00:39]} 26. Reb1 {[%emt 0:03:23]} Bc5 {[%emt 0:11:20]} 27. Bxc5 {[%emt 0:00:20]} Rxc5 {[%emt 0:00:01]} 28. b4 {[%emt 0:01:35]} cxb3 {[%emt 0:06:43]} 29. Rxb3 {[%emt 0:00:11]} Kf8 {[%emt 0:00:05]} 30. Kf1 {[%emt 0:00:50]} Ke7 {[%emt 0:00:04]} 31. Ke2 {[%emt 0:00:20]} Kd6 {[%emt 0:00:11]} 32. Kd3 {[%emt 0:00:28]} Kc6 {[%emt 0:00:06]} 33. f4 {[%emt 0:01:54]} Rc4 {[%emt 0:00:31]} 34. g3 {[%emt 0:00:42]} Ra4 {[%emt 0:02:48]} 35. Rxa4 {[%emt 0:01:54]} bxa4 {[%emt 0:00:01]} 36. Ra3 {[%emt 0:00:10]} Rxa5 {[%emt 0:00:05]} 37. Kd4 Kd6 38. c4 {[%emt 0:02:19]} dxc4 {[%emt 0:00:44]} 39. Kxc4 Ra7 40. g4 {[%emt 0:00:00]} e5 {[%emt 0:00:00]} 41. fxe5+ {[%emt 0:03:15]} Kxe5 {[%emt 0:05:16]} 42. Kc5 {[%emt 0:04:19]} Ra8 {[%emt 0:03:16]} 43. Kc6 {[%emt 0:00:13]} g6 {[%emt 0:02:47]} 44. Kb7 {[%emt 0:02:51]} Ra5 {[%emt 0:01:50]} 45. Kb6 {[%emt 0:00:16]} Rd5 {[%emt 0:00:05]} 46. Rxa4 {[%emt 0:00:41]} f5 {[%emt 0:00:05]} 47. Kc6 {[%emt 0:01:27]} Rd6+ {[%emt 0:02:08]} 48. Kc5 {[%emt 0:00:21]} Rd3 {[%emt 0:00:22]} 49. gxf5 {[%emt 0:02:04]} gxf5 {[%emt 0:00:40]} 50. Rh4 {[%emt 0:00:52]} Rd7 {[%emt 0:00:23]} 51. Kc6 {[%emt 0:01:33]} Rf7 {[%emt 0:00:05]} 52. Rh5 {[%emt 0:00:41]} Ke4 {[%emt 0:00:09]} 53. Kd6 {[%emt 0:00:42]} f4 {[%emt 0:00:32]} 54. Ke6 {[%emt 0:00:29]} Ra7 {[%emt 0:00:21]} 55. Re5+ {[%emt 0:00:50]} Kf3 {[%emt 0:00:09]} 56. Rg5 {[%emt 0:02:00]} Kf2 {[%emt 0:00:10]} 57. h4 {[%emt 0:01:03]} f3 {[%emt 0:01:00]} 58. h5 {[%emt 0:00:39]} Ke2 {[%emt 0:11:12]} 59. Re5+ {[%emt 0:00:28]} Kf1 {[%emt 0:00:06]} 60. Kf6 {[%emt 0:01:13]} Ra6+ {[%emt 0:05:42]} 61. Kg7 {[%emt 0:00:29]} h6 {[%emt 0:00:06]} 62. Kh7 {[%emt 0:04:53]} f2 {[%emt 0:00:18]} 63. Re8 {[%emt 0:05:07]} Rf6 {[%emt 0:01:43]} 64. Rg8 {[%emt 0:01:57]} Ke1 {[%emt 0:00:19]} 65. Re8+ {[%emt 0:00:14]} Kd2 {[%emt 0:00:06]} 66. Rd8+ {[%emt 0:00:38]} Ke2 {[%emt 0:00:06]} 67. Re8+ {[%emt 0:00:42]} Kf3 {[%emt 0:00:05]} 68. Kg7 {[%emt 0:01:23]} Rf4 {[%emt 0:00:05]} 69. Kxh6 {[%emt 0:02:24]} f1=Q 0-1

[Event "WYCC 2018 G18"]
[Site "Halkidiki"]
[Date "2018.10.24"]
[Round "6"]
[White "Ni Mhuireagain, Eibhia"]
[Black "Buchta, Agnieszka"]
[Result "1/2-1/2"]
[ECO "C55"]
[WhiteElo "1655"]
[BlackElo "1879"]
[Annotator "NA"]
[PlyCount "43"]
[EventDate "2018.10.20"]
[EventType "swiss"]
[EventCountry "GRE"]
[SourceTitle "playchess.com"]
[Source "ChessBase"]
[SourceQuality "1"]
[TimeControl "40/5400+30:1800+30"]

1. e4 {[%emt 0:00:00]} e5 {[%emt 0:00:00]} 2. Nf3 {[%emt 0:00:00]} Nc6 {[%emt 0:00:00]} 3. Bc4 {[%emt 0:00:00]} Nf6 {[%emt 0:00:00]} 4. d3 {[%emt 0:00:00]} h6 $11 {[%emt 0:00:00] LiveBook: 1067 Games} 5. c3 {[%emt 0:00:03]} d6 {[%emt 0:00:15]} 6. O-O {[%emt 0:00:19]} g6 {[%emt 0:01:01]} 7. Nbd2 {[%emt 0:01:44]} Bg7 {[%emt 0:00:35]} 8. Re1 {[%emt 0:04:42]} O-O {[%emt 0:01:17]} 9. b4 {[%emt 0:07:03]} Qe7 {[%emt 0:03:32]} 10. Nf1 {[%emt 0:03:33]} Bd7 {[%emt 0:04:16]} 11. a4 {[%emt 0:01:57]} Nh7 {[%emt 0:07:04]} 12. Ne3 {[%emt 0:03:25]} Ng5 {[%emt 0:11:49]} 13. Nxg5 {[%emt 0:03:32]} hxg5 {[%emt 0:01:26]} 14. Nd5 {[%emt 0:00:37]} Qd8 {[%emt 0:01:36]} 15. Qd2 {[%emt 0:09:00]} Ne7 {[%emt 0:28:22]} 16. Qxg5 {[%emt 0:02:14]} Nxd5 {[%emt 0:00:22]} 17. Qxd8 {[%emt 0:03:06]} Raxd8 {[%emt 0:00:57]} 18. Bxd5 {[%emt 0:00:16]} c6 {[%emt 0:01:07]} 19. Bb3 {[%emt 0:00:28]} Kh7 {[%emt 0:01:13]} 20. Be3 {[%emt 0:01:59]} a6 {[%emt 0:05:44]} 21. Bb6 {[%emt 0:05:59]} Rc8 {[%emt 0:00:41]} 22. Rad1 {[%emt 0:05:03]} 1/2-1/2

[Event "WYCC 2018 G18"]
[Site "Halkidiki"]
[Date "2018.10.24"]
[Round "6"]
[White "Manriquez Abarzua, Maria Belen"]
[Black "Gillis Onieva, Celia"]
[Result "0-1"]
[ECO "C00"]
[WhiteElo "1630"]
[BlackElo "1892"]
[Annotator "NA"]
[PlyCount "132"]
[EventDate "2018.10.20"]
[EventType "swiss"]
[EventCountry "GRE"]
[SourceTitle "playchess.com"]
[Source "ChessBase"]
[SourceQuality "1"]
[TimeControl "40/5400+30:1800+30"]

1. e4 {[%emt 0:00:00]} e6 {[%emt 0:00:00]} 2. d4 {[%emt 0:00:00]} d5 {[%emt 0:00:00]} 3. Bd3 {[%emt 0:00:00]} dxe4 {[%emt 0:02:15]} 4. Bxe4 {[%emt 0:00:00]} Nf6 {[%emt 0:00:06]} 5. Bf3 {[%emt 0:00:00]} c5 {[%emt 0:07:02]} 6. Ne2 {[%emt 0:00:02]} Nc6 {[%emt 0:01:56]} 7. Be3 {[%emt 0:03:03]} Qb6 {[%emt 0:11:37]} 8. b3 {[%emt 0:09:21]} Be7 {[%emt 0:04:23]} 9. O-O {[%emt 0:01:25]} O-O {[%emt 0:00:08]} 10. Nbc3 {[%emt 0:01:10]} Rd8 {[%emt 0:05:25]} 11. Na4 {[%emt 0:04:47]} Qc7 {[%emt 0:04:32]} 12. c3 {[%emt 0:05:46]} cxd4 {[%emt 0:13:00]} 13. cxd4 {[%emt 0:03:01]} Nd5 {[%emt 0:00:44]} 14. Qc1 {[%emt 0:02:36]} Nxe3 {[%emt 0:04:53]} 15. Qxe3 {[%emt 0:02:56]} Bf6 {[%emt 0:01:55]} 16. Rac1 {[%emt 0:00:55]} Qd6 {[%emt 0:03:41]} 17. Bxc6 {[%emt 0:01:33]} bxc6 {[%emt 0:00:07]} 18. Qf3 {[%emt 0:10:14]} Ba6 {[%emt 0:04:34]} 19. Nac3 {[%emt 0:15:24]} Bxd4 {[%emt 0:09:18]} 20. Rfd1 {[%emt 0:01:44]} c5 {[%emt 0:01:55]} 21. b4 {[%emt 0:03:43]} Qe7 {[%emt 0:03:37]} 22. Nxd4 {[%emt 0:02:22]} cxd4 {[%emt 0:02:12]} 23. Rxd4 {[%emt 0:02:28]} Rxd4 {[%emt 0:02:26]} 24. Qxa8+ {[%emt 0:00:11]} Rd8 {[%emt 0:00:02]} 25. Qc6 {[%emt 0:03:27]} Bb7 {[%emt 0:02:31]} 26. Qc5 {[%emt 0:01:05]} Qxc5 {[%emt 0:08:09]} 27. bxc5 {[%emt 0:00:02]} Kf8 {[%emt 0:00:14]} 28. Nb5 {[%emt 0:02:55]} Ke7 {[%emt 0:00:26]} 29. Nxa7 {[%emt 0:09:00]} Ra8 {[%emt 0:01:47]} 30. Nb5 {[%emt 0:01:00]} Rxa2 {[%emt 0:00:08]} 31. c6 {[%emt 0:03:57]} Bxc6 {[%emt 0:01:26]} 32. Nd4 {[%emt 0:00:13]} Bd5 {[%emt 0:00:45]} 33. f3 {[%emt 0:00:21]} Kf6 {[%emt 0:01:11]} 34. Re1 {[%emt 0:02:43]} Bc4 {[%emt 0:01:11]} 35. Nc6 {[%emt 0:03:04]} Bd5 {[%emt 0:00:06]} 36. Ne5 {[%emt 0:01:49]} Rd2 {[%emt 0:00:43]} 37. Ng4+ {[%emt 0:00:29]} Kg6 {[%emt 0:00:50]} 38. Ne5+ {[%emt 0:00:12]} Kf6 {[%emt 0:00:10]} 39. Ng4+ {[%emt 0:01:39]} Kg5 {[%emt 0:00:42]} 40. Ra1 {[%emt 0:00:00]} h5 {[%emt 0:00:00]} 41. Nf2 {[%emt 0:08:27]} Kf5 {[%emt 0:08:53]} 42. Ra4 {[%emt 0:02:36]} g5 {[%emt 0:03:24]} 43. h4 {[%emt 0:04:46]} f6 {[%emt 0:03:57]} 44. g4+ {[%emt 0:08:33]} hxg4 {[%emt 0:05:45]} 45. fxg4+ {[%emt 0:00:12]} Kg6 {[%emt 0:00:17]} 46. hxg5 {[%emt 0:02:40]} Kxg5 {[%emt 0:02:14]} 47. Ne4+ {[%emt 0:00:35]} Bxe4 {[%emt 0:00:29]} 48. Rxe4 {[%emt 0:00:05]} e5 {[%emt 0:00:16]} 49. Rc4 {[%emt 0:05:28]} Rd4 {[%emt 0:00:21]} 50. Rc6 {[%emt 0:01:05]} Rxg4+ {[%emt 0:00:11]} 51. Kf2 {[%emt 0:00:04]} Ra4 {[%emt 0:00:35]} 52. Re6 {[%emt 0:00:26]} Ra3 {[%emt 0:01:25]} 53. Ke2 {[%emt 0:00:41]} Kf5 {[%emt 0:00:10]} 54. Re8 {[%emt 0:00:09]} Ke4 {[%emt 0:00:31]} 55. Rb8 {[%emt 0:00:32]} Ra2+ {[%emt 0:00:24]} 56. Kd1 {[%emt 0:00:13]} f5 {[%emt 0:00:38]} 57. Rb4+ {[%emt 0:00:16]} Kd3 {[%emt 0:00:40]} 58. Rb3+ {[%emt 0:00:11]} Kc4 {[%emt 0:00:45]} 59. Rb8 {[%emt 0:00:33]} Kd3 {[%emt 0:01:50]} 60. Rb3+ {[%emt 0:00:12]} Ke4 {[%emt 0:00:05]} 61. Rb4+ {[%emt 0:00:06]} Kf3 {[%emt 0:00:13]} 62. Rb3+ {[%emt 0:00:08]} Kf4 {[%emt 0:00:11]} 63. Rb5 {[%emt 0:02:05]} e4 {[%emt 0:00:18]} 64. Rc5 {[%emt 0:00:35]} e3 {[%emt 0:00:38]} 65. Rc4+ {[%emt 0:00:27]} Kf3 {[%emt 0:00:08]} 66. Rc3 {[%emt 0:02:31]} Kf2 {[%emt 0:00:29]} 0-1

[Event "WYCC 2018 G18"]
[Site "Halkidiki"]
[Date "2018.10.24"]
[Round "6"]
[White "Booysen, Elda"]
[Black "Sevilla, Julia"]
[Result "0-1"]
[ECO "B54"]
[WhiteElo "1452"]
[BlackElo "1947"]
[Annotator "NA"]
[PlyCount "64"]
[EventDate "2018.10.20"]
[EventType "swiss"]
[EventCountry "GRE"]
[SourceTitle "playchess.com"]
[Source "ChessBase"]
[SourceQuality "1"]
[TimeControl "40/5400+30:1800+30"]

1. e4 c5 2. Nf3 d6 3. d4 cxd4 4. Nxd4 Nf6 $14 {LiveBook: 95920 Games} 5. Bb5+ Nbd7 6. O-O a6 7. Bd3 e6 8. c3 Be7 9. Bc2 O-O 10. Be3 Qc7 11. Nd2 b6 12. f3 Bb7 13. Bf2 Rfd8 14. Qe2 Rac8 15. Rac1 Ne5 16. Bg3 Ng6 17. f4 e5 18. Nf5 exf4 19. Bxf4 Nxf4 20. Rxf4 d5 21. e5 Bc5+ 22. Nd4 Ne4 23. N2f3 Re8 24. Kf1 f6 25. Bxe4 dxe4 26. Qc4+ Kh8 27. Ne6 Qe7 28. Nxc5 Rxc5 29. exf6 gxf6 30. Qd4 exf3 31. gxf3 Qe2+ 32. Kg1 Rg5+ 0-1